bitfinex/quotes_ETHUSD_20250213
["timestamp","ask_amount","ask_price","bid_price","bid_amount"]
[1739485862641,2.246,2672.9,2672.7,0.8266]
[1739485862855,2.246,2672.9,2672.8,0.06119678]
[1739485863559,2.246,2672.9,2672.7,0.8266]
[1739485863743,2.246,2672.9,2672.8,5.31119678]
[1739485867967,5.98725,2672.9,2672.8,5.31119678]
[1739485868474,2.246,2672.9,2672.8,5.31119678]
[1739485869771,5.98725,2672.9,2672.8,5.31119678]
[1739485875381,15.37125,2672.9,2672.8,5.31119678]
[1739485875883,15.37125,2672.9,2672.8,0.06119678]
[1739485876233,2.246,2672.6,2672.5,5.25]
[1739485876560,5.98767,2672.6,2672.5,5.310283]
[1739485876870,15.68137,2672.6,2672.5,0.060283]
[1739485877256,2.2535,2672.4,2672.1,0.005]
[1739485877451,5.99573,2672.2,2672.1,0.005]
[1739485877636,6.30443,2672.2,2672.1,0.005]
[1739485881048,6.31193,2672.2,2672.1,0.005]
[1739485881232,15.68393,2672.2,2672.1,0.005]
[1739485882647,6.57443,2672.2,2672.1,0.005]
[1739485885094,15.94643,2672.2,2672.1,0.005]
[1739485885394,16.50393,2672.2,2672.1,0.005]
[1739485894908,6.31193,2672.2,2672.1,0.005]
[1739485895201,6.31193,2672.2,2672.1,0.06508304]
[1739485895202,6.58193,2672.2,2672.1,0.06508304]
[1739485895502,6.58193,2672.2,2672.1,0.005]
[1739485897198,6.27323,2672.2,2672.1,0.005]
[1739485897572,6.27323,2672.2,2672.1,0.06508304]
[1739485899655,15.64423,2672.2,2672.1,0.06508304]
[1739485901849,15.64423,2672.2,2672.1,0.005]
[1739485902496,15.64423,2672.2,2672.1,0.06508304]
[1739485904297,6.26573,2672.2,2672.1,0.06508304]
[1739485912170,6.25823,2672.2,2672.1,0.06508304]
[1739485912569,2.516,2672.2,2672.1,0.06508304]
[1739485912799,6.25823,2672.2,2672.1,0.06508304]
[1739485914199,6.25823,2672.2,2672.1,0.06400404]
[1739485917292,6.25823,2672.2,2672.1,5.31400404]
[1739485921358,6.25823,2672.2,2672.1,5.31400404]
[1739485925239,5.98823,2672.2,2672.1,5.31400404]
[1739485925445,6.25823,2672.2,2672.1,5.31400404]
[1739485931460,15.62923,2672.2,2672.1,0.06400404]
[1739485931971,15.63673,2672.2,2672.1,0.06400404]
[1739485932105,15.64423,2672.2,2672.1,0.06400404]
[1739485932312,15.95293,2672.2,2672.1,0.06400404]
[1739485939188,11.617,2672.2,2672.1,0.06400404]
[1739485939336,2.516,2672.5,2672.2,0.7824]
[1739485939672,2.246,2672.5,2672.3,0.88710697]
[1739485939869,2.246,2672.5,2672.4,0.8291]
[1739485940370,2.246,2672.6,2672.4,0.88710697]
[1739485940520,5.98769,2672.6,2672.4,0.88710697]
[1739485941756,3.74181,2672.5,2672.4,0.88710697]
[1739485943026,3.74169,2672.6,2672.4,0.88710697]
[1739485943341,3.74169,2672.6,2672.4,1.10920591]
[1739485944053,3.74169,2672.6,2672.4,9.85920591]
[1739485944253,3.74181,2672.5,2672.4,9.85920591]
[1739485946036,3.74169,2672.6,2672.4,9.85920591]
[1739485947039,3.74181,2672.5,2672.4,9.85920591]
[1739485949244,3.74169,2672.6,2672.4,9.85920591]
[1739485949450,2.52,2672.7,2672.5,0.98592059]
[1739485949650,2.52,2672.7,2672.5,1.04309999]
[1739485950054,2.52,2672.7,2672.5,15.04309999]
[1739485950550,2.52,2672.7,2672.6,8.75]
[1739485950551,0.27,2672.7,2672.6,8.75]
[1739485950936,5.49254434,2672.9,2672.7,0.8022]
[1739485951144,5.76254434,2672.9,2672.7,0.8022]
[1739485951356,2.02121434,2672.9,2672.8,0.05624242]
[1739485951648,2.02121434,2673.1,2672.7,2.76083746]
[1739485951878,2.25,2673.0,2672.8,3.7976128]
[1739485952601,2.25,2673.0,2672.9,4.54345]
[1739485952795,2.25,2673.1,2672.9,0.8022]
[1739485953103,2.25,2673.1,2673.0,4.20109028]
[1739485953398,2.52,2673.4,2673.1,0.7762]
[1739485953602,2.25,2673.4,2673.3,4.51689]
[1739485953896,1.75121434,2673.7,2673.3,3.001965]
[1739485953897,2.25,2673.6,2673.3,3.001965]
[1739485954096,2.02121434,2673.9,2673.5,0.7899]
[1739485954297,2.25,2673.8,2673.6,3.7402]
[1739485954466,2.25,2673.8,2673.7,8.99013]
[1739485954723,1.75121434,2674.1,2673.7,14.05483828]
[1739485954979,1.75121434,2674.1,2673.8,1.77950383]
[1739485954980,2.02121434,2674.1,2673.8,1.77950383]
[1739485955183,2.02121434,2674.1,2673.9,0.7729]
[1739485955351,2.25,2674.0,2673.9,0.7729]
[1739485955549,2.25,2674.3,2673.9,0.7729]
[1739485955871,2.25,2674.3,2674.0,17.73961]
[1739485956066,2.25,2674.3,2674.1,1.851251]
[1739485956756,2.75559129,2674.4,2674.1,1.851251]
[1739485956957,2.75559129,2674.4,2674.2,14.0]
[1739485957802,2.75559129,2674.4,2674.3,9.5602]
[1739485958002,2.75559129,2674.4,2674.3,21.54949]
[1739485958148,4.00824,2675.1,2674.3,19.7140151]
[1739485958353,0.27,2675.1,2674.6,3.73882]
[1739485958587,0.27,2675.1,2674.7,0.8102]
[1739485959105,4.00819,2675.1,2674.7,0.8102]
[1739485959287,3.73776,2675.4,2674.7,0.8102]
[1739485959491,0.27,2675.3,2674.8,3.73847]
[1739485959830,0.27,2675.3,2674.9,3.73841]
[1739485960038,3.27,2675.3,2675.0,14.0]
[1739485960601,0.27,2675.3,2675.0,17.73829]
[1739485960799,0.27,2675.3,2675.0,14.0]
[1739485961235,3.0,2675.4,2675.1,0.8087]
[1739485961401,3.60514818,2675.5,2675.1,2.582532]
[1739485961935,3.0,2675.5,2675.2,5.25]
[1739485962106,0.27,2675.6,2675.2,5.25]
[1739485962309,0.27,2675.6,2675.2,8.98803]
[1739485962511,3.0075,2675.7,2675.3,3.73784]
[1739485962709,3.0075,2675.7,2675.3,0.05240693]
[1739485963027,3.0075,2675.7,2675.2,15.1318242]
[1739485963336,3.0075,2675.7,2675.2,11.3937942]
[1739485963562,3.0075,2675.7,2675.3,0.05240693]
[1739485963563,3.0,2675.7,2675.3,0.05240693]
[1739485963712,3.0,2675.7,2675.4,1.51841411]
[1739485964127,3.0,2675.7,2675.5,0.05240693]
[1739485964324,3.0,2675.7,2675.6,5.25]
[1739485964624,9.87066509,2676.0,2675.6,6.09970693]
[1739485964625,4.00709,2675.9,2675.6,6.09970693]
[1739485965144,3.0,2675.8,2675.6,6.09970693]
[1739485965342,3.0,2675.8,2675.6,8.11028703]
[1739485965647,9.67949,2676.0,2675.6,16.86028703]
[1739485965808,3.0,2675.9,2675.6,20.59774703]
[1739485966008,0.0075,2676.0,2675.6,20.59768703]
[1739485966213,3.0075,2676.0,2675.6,20.59768703]
[1739485967245,3.0,2676.0,2675.6,20.59768703]
[1739485967545,3.0,2676.0,2675.6,20.5452801]
[1739485968043,6.73692,2676.0,2675.7,0.05157168]
[1739485968255,3.0,2676.0,2675.8,5.25]
[1739485968419,3.73664,2676.2,2675.8,5.25]
[1739485968618,3.0,2676.3,2675.9,4.53317]
[1739485968949,6.73653,2676.3,2676.0,14.978317]
[1739485969254,6.73653,2676.3,2676.0,15.02840043]
[1739485969545,3.0,2676.3,2676.0,15.02840043]
[1739485969717,3.73667,2676.2,2676.0,15.02840043]
[1739485970169,6.73651,2676.3,2676.0,15.02840043]
[1739485971311,3.0,2676.4,2676.0,14.05008343]
[1739485971610,6.73644,2676.4,2676.0,14.05008343]
[1739485971808,3.73651,2676.3,2676.0,14.05008343]
[1739485972613,3.0,2676.2,2676.0,14.05008343]
[1739485973112,3.73651,2676.3,2676.0,14.05008343]
[1739485973400,3.73651,2676.3,2676.0,16.28212377]
[1739485973611,3.73651,2676.3,2676.0,14.05008343]
[1739485973812,3.73664,2676.2,2676.1,14.0]
[1739485974164,3.73664,2676.2,2676.1,14.04969958]
[1739485974700,6.73664,2676.2,2676.1,14.04969958]
[1739485975216,3.0,2676.2,2676.1,14.04969958]
[1739485975526,6.73664,2676.2,2676.1,14.04969958]
[1739485975663,3.0,2676.2,2676.1,14.04969958]
[1739485977915,6.73664,2676.2,2676.1,14.04969958]
[1739485978422,3.0,2676.2,2676.1,14.04969958]
[1739485978919,6.73664,2676.2,2676.1,14.04969958]
[1739485980020,18.35114,2676.2,2676.1,14.04969958]
[1739485980189,18.34364,2676.2,2676.1,14.04969958]
[1739485980386,18.35114,2676.2,2676.1,14.04969958]
[1739485980601,18.35864,2676.2,2676.1,14.04969958]
[1739485981148,18.35864,2676.2,2676.1,14.0]
[1739485981305,18.35864,2676.2,2676.1,14.04896082]
[1739485981476,18.66734,2676.2,2676.1,14.04896082]
[1739485985292,18.34364,2676.2,2676.1,14.04896082]
[1739485985475,14.877,2676.2,2676.1,14.04896082]
[1739485985676,18.61364,2676.2,2676.1,5.29896082]
[1739485985913,7.00664,2676.2,2676.1,6.07706082]
[1739485986109,3.0,2676.2,2676.1,6.07706082]
[1739485987874,6.12514818,2676.4,2676.1,18.56378082]
[1739485987875,5.85514818,2676.4,2676.1,18.56378082]
[1739485988081,2.2575,2676.5,2676.1,18.56378082]
[1739485988281,3.0,2676.5,2676.2,3.73659]
[1739485988581,3.0,2676.5,2676.3,8.75]
[1739485988792,3.0,2676.5,2676.3,8.79896082]
[1739485989193,3.73616,2676.6,2676.3,8.79896082]
[1739485989605,3.0,2676.5,2676.3,8.79896082]
[1739485989839,6.73631,2676.5,2676.3,8.79896082]
[1739485990783,3.0,2676.5,2676.3,8.79896082]
[1739485991087,6.73629,2676.5,2676.3,8.79896082]
[1739485992521,3.0,2676.6,2676.3,8.79896082]
[1739485992696,3.0,2676.6,2676.3,10.63022708]
[1739485992878,3.0,2676.6,2676.4,0.7957]
[1739485993078,3.0,2676.6,2676.5,0.04861553]
[1739485993279,3.0,2676.6,2676.5,14.04861553]
[1739485995185,3.73588,2676.8,2676.5,14.04861553]
[1739485995423,6.73594,2676.7,2676.6,1.48443155]
[1739485995929,6.73594,2676.7,2676.6,1.53254836]
[1739485997464,6.73594,2676.7,2676.6,15.53254836]
[1739485999742,6.73594,2676.7,2676.6,14.04811681]
[1739486002027,8.98594,2676.7,2676.6,14.04811681]
[1739486003382,8.98594,2676.7,2676.6,5.29811681]
[1739486009695,8.99344,2676.7,2676.6,5.29811681]
[1739486010948,9.1846869,2676.7,2676.6,5.29811681]
[1739486011698,18.5406869,2676.7,2676.6,5.29811681]
[1739486013882,9.1846869,2676.7,2676.6,5.29811681]
[1739486020098,9.1846869,2676.7,2676.6,5.24811681]
[1739486020288,9.1846869,2676.7,2676.6,5.2945727]
[1739486021675,10.93017452,2676.7,2676.6,5.2945727]
[1739486024255,11.20017452,2676.7,2676.6,5.2945727]
[1739486033878,9.4546869,2676.7,2676.6,5.2945727]
[1739486041037,9.4471869,2676.7,2676.6,5.2945727]
[1739486041869,9.4546869,2676.7,2676.6,5.2945727]
[1739486045494,5.7112469,2676.7,2676.6,5.2945727]
[1739486047224,5.4412469,2676.7,2676.6,5.2945727]
[1739486047436,5.4412469,2676.7,2676.6,6.1248727]
[1739486049237,9.1771869,2676.7,2676.6,6.1248727]
[1739486050841,9.4858869,2676.7,2676.6,5.2945727]
[1739486051644,9.1771869,2676.7,2676.6,5.2945727]
[1739486051993,8.98594,2676.7,2676.6,5.2945727]
[1739486060045,9.16879814,2676.7,2676.6,5.2945727]
[1739486060744,3.0,2676.7,2676.6,5.2945727]
[1739486062899,3.0,2676.7,2676.6,14.0445727]
[1739486063545,6.73594,2676.7,2676.6,14.0445727]
[1739486072992,6.73594,2676.7,2676.6,3.2945727]
[1739486073194,6.73594,2676.7,2676.0,3.73682]
[1739486073195,0.3087,2676.5,2675.1,3.99083099]
[1739486073397,1.74548762,2675.4,2675.1,8.44397814]
[1739486073688,5.98789,2675.3,2675.2,7.61377814]
[1739486074003,3.99548762,2675.3,2675.2,7.61377814]
[1739486074300,7.73337762,2675.3,2675.2,7.61377814]
[1739486074804,7.74087762,2675.3,2675.2,7.61377814]
[1739486074957,9.48636524,2675.3,2675.2,7.61377814]
[1739486075208,7.74087762,2675.3,2675.2,7.61377814]
[1739486075359,8.02088377,2675.3,2675.2,7.61377814]
[1739486076054,11.02088377,2675.3,2675.2,7.61377814]
[1739486076259,11.02088377,2675.3,2674.1,3.73951]
[1739486076260,3.7388,2674.7,2674.6,0.8302]
[1739486076456,3.73891,2674.6,2674.4,8.44397814]
[1739486076778,3.7388,2674.7,2674.4,8.44397814]
[1739486076779,5.48449762,2674.5,2674.4,7.61377814]
[1739486077801,3.60562412,2674.6,2674.4,7.61377814]
[1739486078019,0.28000615,2674.5,2674.4,7.61377814]
[1739486078355,0.28000615,2674.5,2674.4,8.45817595]
[1739486079456,0.28000615,2674.5,2674.4,9.28507595]
[1739486079657,3.79113361,2674.6,2674.4,9.28507595]
[1739486080378,3.60562412,2674.6,2674.4,9.28507595]
[1739486080562,3.60562412,2674.6,2674.5,10.86189495]
[1739486086732,7.34449412,2674.6,2674.5,10.86189495]
[1739486087832,3.60562412,2674.6,2674.5,10.86189495]
[1739486090871,7.34449412,2674.6,2674.5,10.86189495]
[1739486091079,10.34449412,2674.6,2674.5,10.86189495]
[1739486091787,10.35199412,2674.6,2674.5,10.86189495]
[1739486091999,21.96499412,2674.6,2674.5,3.24811681]
[1739486092125,12.60199412,2674.6,2674.5,3.24811681]
[1739486093391,22.25046103,2674.6,2674.5,3.24811681]
[1739486098780,22.24296103,2674.6,2674.5,3.24811681]
[1739486099849,22.55166103,2674.6,2674.5,3.24811681]
[1739486100881,22.24296103,2674.6,2674.5,3.24811681]
[1739486101085,22.51296103,2674.6,2674.5,3.24811681]
[1739486102655,13.14996103,2674.6,2674.5,3.24811681]
[1739486102993,9.41109103,2674.6,2674.5,3.24811681]
[1739486103366,9.40359103,2674.6,2674.5,3.24811681]
[1739486103540,9.13359103,2674.6,2674.5,3.24811681]
[1739486104849,12.87246103,2674.6,2674.5,3.24811681]
[1739486105319,13.18116103,2674.6,2674.5,3.24811681]
[1739486105585,22.55166103,2674.6,2674.5,3.24811681]
[1739486106136,22.55166103,2674.6,2674.2,1.37860681]
[1739486106341,9.60241412,2674.3,2674.2,1.37860681]
[1739486106538,12.60241412,2674.3,2674.2,6.81e-06]
[1739486106756,2.25,2673.8,2673.1,0.8107]
[1739486106993,0.0075,2674.0,2673.2,13.70622595]
[1739486106994,3.74059,2673.4,2673.2,13.70622595]
[1739486107287,3.74069,2673.3,2673.2,13.70622595]
[1739486107639,7.34631412,2673.3,2673.2,12.86377814]
[1739486107847,9.59631412,2673.3,2673.2,12.86377814]
[1739486108391,9.59631412,2673.3,2672.7,13.65667814]
[1739486108392,3.74139,2672.8,2672.7,13.65667814]
[1739486109237,3.74139,2672.8,2672.7,12.86377814]
[1739486109401,5.99139,2672.8,2672.7,5.25]
[1739486110143,5.25,2672.8,2672.5,7.61377814]
[1739486110306,9.59729412,2672.6,2672.5,7.61377814]
[1739486110499,3.74181,2672.5,2672.4,8.40667814]
[1739486110731,3.74181,2672.5,2672.4,13.65667814]
[1739486111107,5.99181,2672.5,2672.4,6.0429]
[1739486111430,5.99181,2672.5,2672.4,5.25]
[1739486111832,4.01977691,2672.5,2672.4,5.25]
[1739486112003,3.74209,2672.3,2672.1,0.820421]
[1739486112338,3.74223,2672.2,2672.1,0.820421]
[1739486113336,4.02019691,2672.2,2672.1,0.820421]
[1739486113746,0.27796691,2672.2,2672.1,0.820421]
[1739486115252,4.02019691,2672.2,2672.1,0.820421]
[1739486116352,3.74223,2672.2,2672.1,13.68419914]
[1739486116893,3.74223,2672.2,2672.1,0.003921]
[1739486119095,13.39239613,2672.2,2672.1,0.003921]
[1739486119649,4.02039613,2672.2,2672.1,0.003921]
[1739486119799,13.39989613,2672.2,2672.1,0.003921]
[1739486122044,15.64989613,2672.2,2672.1,0.003921]
[1739486128250,15.95859613,2672.2,2672.1,0.003921]
[1739486131116,19.51609613,2672.2,2672.1,1e-06]
[1739486132036,18.95859613,2672.2,2672.1,1e-06]
[1739486135154,2.25,2671.1,2670.6,0.8001]
[1739486135321,5.99396,2671.0,2670.7,8.41387814]
[1739486135551,5.99396,2671.0,2670.8,7.61377814]
[1739486135763,2.25,2671.0,2670.8,7.61377814]
[1739486136071,2.25,2671.0,2670.9,0.10158803]
[1739486137189,6.27207613,2671.0,2670.9,0.10158803]
[1739486138685,0.27816613,2671.0,2670.9,0.10158803]
[1739486138985,0.27816613,2671.0,2670.9,0.93448803]
[1739486139705,4.02207613,2671.0,2670.9,0.93448803]
[1739486140196,4.02207613,2671.0,2670.9,13.79826617]
[1739486142198,6.27207613,2671.0,2670.9,13.79826617]
[1739486142404,2.52816613,2671.0,2670.9,13.79826617]
[1739486144507,2.25,2671.0,2670.9,13.79826617]
[1739486145439,2.25,2671.1,2670.9,13.79826617]
[1739486145712,5.99391,2671.1,2670.9,12.96536617]
[1739486146012,5.99391,2671.1,2671.0,7.61377814]
[1739486146509,5.99391,2671.1,2671.0,7.71576064]
[1739486146916,5.94391,2671.1,2671.0,7.71576064]
[1739486147072,2.2,2671.1,2671.0,8.53346064]
[1739486147465,5.94377,2671.1,2671.0,8.53346064]
[1739486148517,2.2,2671.1,2671.0,8.53346064]
[1739486148667,5.94377,2671.1,2671.0,8.53346064]
[1739486149210,2.2,2671.1,2671.0,8.53346064]
[1739486150631,5.94377,2671.1,2671.0,8.53346064]
[1739486151943,5.94377,2671.1,2671.0,13.78346064]
[1739486152531,2.2,2671.1,2671.0,12.96576064]
[1739486152697,5.94377,2671.1,2671.0,12.96576064]
[1739486153829,2.2,2671.1,2671.0,12.96576064]
[1739486154823,5.8936,2671.3,2671.0,12.96576064]
[1739486155022,5.8936,2671.3,2671.1,0.7633]
[1739486155592,5.8936,2671.3,2671.2,0.1019825]
[1739486157030,2.15,2671.3,2671.2,0.1019825]
[1739486157326,5.89349,2671.3,2671.2,0.1019825]
[1739486157928,2.15,2671.3,2671.2,5.3519825]
[1739486158117,5.89349,2671.3,2671.2,5.3519825]
[1739486162936,5.89349,2671.3,2671.2,5.25]
[1739486163134,5.89349,2671.3,2671.2,5.3519825]
[1739486171648,7.95464253,2671.3,2671.2,5.3519825]
[1739486173499,19.08959506,2671.3,2671.2,5.3519825]
[1739486176002,22.2000261,2671.3,2671.2,0.1019825]
[1739486176201,22.2000261,2671.3,2670.8,5.25]
[1739486176202,5.89475,2670.4,2670.3,5.25]
[1739486176645,5.89475,2670.4,2670.3,5.35253097]
[1739486177210,15.58895,2670.4,2670.3,0.10253097]
[1739486177411,9.8262861,2670.4,2670.3,0.10253097]
[1739486177637,2.15,2670.2,2670.0,0.1462292]
[1739486178926,5.8949,2670.3,2670.0,0.1462292]
[1739486179127,2.15,2670.3,2670.0,0.1462292]
[1739486179654,5.89491,2670.3,2670.0,0.1462292]
[1739486180151,2.15,2670.3,2670.0,0.1462292]
[1739486180893,5.89491,2670.3,2670.0,0.1462292]
[1739486181294,2.15,2670.1,2670.0,0.1462292]
[1739486182247,2.15,2670.3,2670.0,0.1462292]
[1739486182566,5.89489,2670.3,2670.0,0.1462292]
[1739486187292,2.15,2670.1,2670.0,0.1462292]
[1739486187657,2.15,2670.1,2670.0,5.3962292]
[1739486187867,2.15,2670.1,2670.0,5.50003073]
[1739486188813,7.48988,2670.3,2670.0,5.50003073]
[1739486188814,2.15,2670.2,2670.0,5.50003073]
[1739486195623,3.90352068,2670.2,2670.0,5.50003073]
[1739486198742,7.64857068,2670.2,2670.0,5.50003073]
[1739486199055,7.64856068,2670.2,2670.0,5.50003073]
[1739486200346,3.90352068,2670.2,2670.0,5.50003073]
[1739486205177,7.64864068,2670.2,2670.0,5.50003073]
[1739486205570,7.64864068,2670.2,2670.0,13.11380887]
[1739486206726,3.90352068,2670.2,2670.0,13.11380887]
[1739486207871,7.64865068,2670.2,2670.0,13.11380887]
[1739486208366,5.89517,2670.1,2670.0,13.11380887]
[1739486208951,2.15,2670.1,2670.0,13.11380887]
[1739486210443,5.89517,2670.1,2670.0,13.11380887]
[1739486211376,5.89517,2670.1,2670.0,5.50003073]
[1739486215703,6.20387,2670.1,2670.0,5.50003073]
[1739486216027,6.21137,2670.1,2670.0,0.25003073]
[1739486216193,9.21137,2670.1,2670.0,0.25003073]
[1739486218633,18.59787,2670.1,2670.0,0.25003073]
[1739486219169,18.59787,2670.1,2670.0,0.1462292]
[1739486221751,19.33259143,2670.1,2670.0,0.1462292]
[1739486223544,19.33259143,2670.1,2670.0,0.25121525]
[1739486229446,16.33259143,2670.1,2670.0,0.25121525]
[1739486230310,18.33259143,2670.1,2670.0,0.25121525]
[1739486232435,18.33259143,2670.1,2670.0,5.25e-06]
[1739486232635,18.33259143,2670.1,2670.0,5.73e-06]
[1739486232866,5.85366,2669.4,2669.3,12.86377814]
[1739486233035,2.1,2669.1,2669.0,0.758]
[1739486233851,5.84658,2669.1,2669.0,0.758]
[1739486234483,5.84658,2669.1,2668.8,13.62127814]
[1739486234685,2.1,2668.9,2668.8,13.62127814]
[1739486235190,2.1,2668.9,2668.8,6.0075]
[1739486235390,2.1,2668.9,2668.8,5.25]
[1739486236187,5.84686,2668.9,2668.8,5.25]
[1739486237891,5.85436,2668.9,2668.8,5.25]
[1739486238043,5.85436,2668.9,2668.6,8.43047814]
[1739486238243,3.85352068,2668.7,2668.6,0.8167]
[1739486240186,3.85352068,2668.7,2668.6,0.9162411]
[1739486245494,2.05,2668.8,2668.6,0.9162411]
[1739486245680,2.05,2668.8,2668.6,0.8662411]
[1739486249447,2.05,2668.8,2668.6,4.6134611]
[1739486249895,2.05,2668.8,2668.6,0.8662411]
[1739486250095,2.05,2668.8,2668.6,8.48001924]
[1739486251111,2.05,2668.8,2668.6,12.22726924]
[1739486251690,2.05,2668.8,2668.7,3.74714]
[1739486252083,2.05,2668.8,2668.7,3.8467582]
[1739486252285,2.05,2668.8,2668.7,0.0996182]
[1739486254556,2.05,2668.8,2668.7,3.8467582]
[1739486254996,2.05,2668.8,2668.7,0.0996182]
[1739486255905,2.05,2668.8,2668.7,12.96339634]
[1739486257670,2.05,2668.8,2668.7,17.49563634]
[1739486258199,2.05,2668.8,2668.7,19.61992497]
[1739486258493,2.05,2668.8,2668.7,15.87278497]
[1739486258653,2.05,2668.8,2668.7,13.74849634]
[1739486260234,2.05,2669.0,2668.7,13.74849634]
[1739486260801,2.05,2669.0,2668.7,17.49554634]
[1739486261847,2.05,2669.0,2668.8,7.61377814]
[1739486262485,2.05,2669.0,2668.9,0.0996182]
[1739486267839,2.05,2669.0,2668.9,7.71339634]
[1739486270430,2.05,2669.0,2668.9,14.38551197]
[1739486270637,2.252,2669.2,2669.1,3.74651]
[1739486271130,2.252,2669.3,2669.1,3.84582937]
[1739486271375,2.252,2669.3,2669.2,0.801]
[1739486271537,2.252,2669.3,2669.2,17.41121814]
[1739486271737,2.252,2669.3,2669.2,19.62631032]
[1739486272268,2.252,2669.4,2669.3,3.7463]
[1739486272579,2.252,2669.4,2669.2,19.52699095]
[1739486272744,2.252,2669.4,2669.3,3.84561937]
[1739486273155,2.252,2669.6,2669.3,3.84561937]
[1739486274482,2.252,2669.6,2669.3,6.1828904]
[1739486275626,2.252,2669.6,2669.4,3.74611]
[1739486275825,2.252,2669.6,2669.4,0.09879898]
[1739486276684,2.252,2669.6,2669.4,7.71257712]
[1739486277392,2.252,2669.8,2669.5,4.50831]
[1739486277679,2.252,2669.8,2669.5,6.43692469]
[1739486278001,2.252,2669.8,2669.5,2.69091469]
[1739486278655,2.252,2669.8,2669.5,6.43686469]
[1739486280685,2.252,2669.8,2669.6,3.74587]
[1739486280893,2.252,2669.8,2669.5,2.69091469]
[1739486281123,2.252,2669.8,2669.7,0.09801845]
[1739486281276,2.252,2669.8,2669.5,4.5082]
[1739486281481,2.252,2669.8,2669.7,0.09801845]
[1739486281720,2.252,2669.8,2669.6,3.74586]
[1739486281897,2.252,2669.8,2669.7,0.09801845]
[1739486282593,2.252,2669.8,2669.7,12.96179659]
[1739486283536,2.252,2669.8,2669.7,16.70752659]
[1739486283737,2.252,2669.8,2669.7,12.96179659]
[1739486284896,2.252,2670.0,2669.7,18.62482827]
[1739486285134,2.252,2670.0,2669.8,7.61377814]
[1739486285646,2.252,2670.0,2669.9,0.09801845]
[1739486286808,2.252,2670.0,2669.9,3.84346845]
[1739486287041,2.252,2670.0,2669.9,17.49474659]
[1739486287428,2.252,2670.2,2669.9,17.49474659]
[1739486287631,2.252,2670.2,2669.9,19.61876825]
[1739486287803,2.252,2670.2,2670.0,3.74526]
[1739486288025,2.252,2670.2,2670.0,3.84238262]
[1739486288340,2.252,2670.2,2670.1,12.86377814]
[1739486288923,2.252,2670.2,2670.1,12.96090076]
[1739486289098,2.252,2670.2,2670.1,14.922676]
[1739486289510,2.252,2670.3,2670.1,14.922676]
[1739486291617,5.99689,2670.3,2670.2,7.61377814]
[1739486291801,5.99689,2670.3,2670.2,7.7107852]
[1739486292001,2.252,2670.3,2670.2,7.7107852]
[1739486295345,2.252,2670.3,2670.2,10.32986424]
[1739486295644,2.252,2670.3,2670.2,14.07489424]
[1739486296357,2.252,2670.5,2670.2,14.07489424]
[1739486296527,2.252,2670.5,2670.3,12.86377814]
[1739486296929,2.252,2670.5,2670.4,0.09683373]
[1739486297242,2.252,2670.6,2670.4,6.14853582]
[1739486297669,2.252,2670.6,2670.5,16.60838814]
[1739486297888,2.252,2670.6,2670.5,17.40108814]
[1739486298032,2.252,2670.6,2670.5,17.49784485]
[1739486298233,2.252,2670.8,2670.7,3.74433]
[1739486298433,2.252,2671.0,2670.8,3.74411]
[1739486298658,2.252,2671.0,2670.9,8.99405]
[1739486298875,2.252,2671.0,2670.9,9.09000756]
[1739486299078,2.252,2671.0,2670.9,9.88270756]
[1739486299376,2.252,2671.2,2671.0,3.74382]
[1739486299733,2.252,2671.2,2671.1,0.09565917]
[1739486302273,2.252,2671.2,2671.1,3.83942917]
[1739486303579,2.252,2671.4,2671.2,3.74363]
[1739486303936,2.252,2671.4,2671.3,0.09444915]
[1739486304238,2.252,2671.4,2671.2,3.74363]
[1739486304437,2.252,2671.4,2671.3,0.09444915]
[1739486304830,2.252,2671.4,2671.2,5.77873981]
[1739486305030,2.252,2671.4,2671.3,0.09444915]
[1739486305496,2.252,2671.4,2671.2,5.77873981]
[1739486305797,2.252,2671.4,2671.3,0.09444915]
[1739486305954,1.75352068,2671.5,2671.3,4.50149]
[1739486306155,2.252,2671.6,2671.4,0.09444915]
[1739486306390,2.252,2671.6,2671.5,7.61377814]
[1739486306579,2.252,2671.6,2671.5,7.70807333]
[1739486307752,2.252,2671.6,2671.5,11.45128333]
[1739486308356,2.252,2671.6,2671.5,7.70807333]
[1739486309405,2.252,2671.6,2671.5,5.34429519]
[1739486315384,2.252,2671.6,2671.5,12.95807333]
[1739486320384,2.252,2671.6,2671.5,16.70128333]
[1739486320587,2.252,2671.6,2671.5,12.95807333]
[1739486321206,2.252,2671.6,2671.5,16.70128333]
[1739486340671,2.252,2671.6,2671.5,18.82154566]
[1739486340869,2.252,2671.8,2671.7,4.55923]
[1739486341234,2.252,2671.8,2671.7,4.65074311]
[1739486341768,1.75352068,2671.9,2671.7,17.51452125]
[1739486341967,1.75352068,2671.9,2671.8,5.49424213]
[1739486342273,4.00552068,2671.9,2671.8,5.49424213]
[1739486342455,4.00552068,2671.9,2671.8,5.58575524]
[1739486342660,2.252,2671.9,2671.8,5.58575524]
[1739486342879,4.00552068,2672.1,2671.9,3.74257]
[1739486343076,4.00552068,2672.1,2672.0,0.93283252]
[1739486343257,4.00552068,2672.1,2672.0,17.53912066]
[1739486343450,4.00552068,2672.1,2672.0,17.63063377]
[1739486346197,4.00552068,2672.1,2672.0,18.40453377]
[1739486351396,4.00552068,2672.3,2672.2,3.74223]
[1739486351600,4.00552068,2672.3,2672.2,5.95688938]
[1739486351803,4.00552068,2672.3,2672.2,6.04761393]
[1739486351994,4.00552068,2672.3,2672.2,18.91139207]
[1739486356531,4.00552068,2672.3,2672.2,19.71439207]
[1739486357527,1.75352068,2672.5,2672.2,19.71439207]
[1739486357728,2.252,2672.4,2672.3,6.08774321]
[1739486357935,2.252,2672.4,2672.3,6.17802554]
[1739486358133,1.75352068,2672.5,2672.3,19.04180368]
[1739486358332,1.75352068,2672.5,2672.4,3.74195]
[1739486358722,1.75352068,2672.5,2672.4,3.83211697]